bitfinex/quotes_BTCUSD_20240715
["timestamp","ask_amount","ask_price","bid_price","bid_amount"]
[1721016712290,0.06172515,62779.0,62778.0,0.201362]
[1721016712524,0.06172515,62779.0,62778.0,0.143362]
[1721016713227,0.00044741,62777.0,62776.0,0.143364]
[1721016713434,0.01399115,62777.0,62776.0,0.143364]
[1721016713635,0.01399115,62777.0,62776.0,0.15456756]
[1721016713842,0.07509115,62777.0,62776.0,0.15456756]
[1721016714277,0.14669215,62777.0,62776.0,0.15456956]
[1721016714473,0.14669215,62777.0,62776.0,0.01120356]
[1721016714825,0.00044741,62776.0,62775.0,0.143368]
[1721016715159,0.08559823,62776.0,62775.0,0.143368]
[1721016715332,0.08552093,62776.0,62775.0,0.143368]
[1721016715673,0.08552285,62776.0,62775.0,0.143368]
[1721016716773,0.08552285,62776.0,62775.0,0.012]
[1721016716978,0.01391646,62776.0,62775.0,0.012]
[1721016717150,0.11139164,62776.0,62775.0,0.012]
[1721016717557,0.10939164,62776.0,62775.0,0.012]
[1721016717761,0.11139164,62776.0,62775.0,0.012]
[1721016718140,0.11139084,62776.0,62775.0,0.012]
[1721016718364,0.09592251,62776.0,62775.0,0.012]
[1721016718565,0.12822782,62776.0,62775.0,0.012]
[1721016718792,0.12822782,62776.0,62774.0,0.143371]
[1721016719188,0.01409003,62775.0,62774.0,0.143371]
[1721016719658,0.10956513,62775.0,62774.0,0.143371]
[1721016720147,0.10956513,62775.0,62774.0,0.155371]
[1721016720368,0.01409003,62775.0,62774.0,0.143371]
[1721016720590,0.01409003,62775.0,62774.0,0.187371]
[1721016720793,0.08669238,62775.0,62774.0,0.201371]
[1721016721216,0.08687424,62775.0,62774.0,0.157371]
[1721016721858,0.01527273,62775.0,62774.0,0.157371]
[1721016722098,0.01427273,62775.0,62774.0,0.143371]
[1721016722310,0.08587232,62775.0,62774.0,0.143371]
[1721016722535,0.08587232,62775.0,62774.0,0.014]
[1721016722536,0.01527273,62775.0,62774.0,0.014]
[1721016722766,0.01527273,62775.0,62771.0,0.002]
[1721016722767,0.43057541,62772.0,62771.0,0.002]
[1721016722984,0.58470073,62772.0,62771.0,0.002]
[1721016723191,0.46882041,62772.0,62771.0,0.002]
[1721016723367,0.15457273,62772.0,62771.0,0.046]
[1721016723604,0.27391642,62772.0,62771.0,0.01149257]
[1721016724063,0.41729242,62772.0,62771.0,0.01149257]
[1721016724279,0.75620802,62772.0,62771.0,0.01149257]
[1721016724495,0.70463265,62772.0,62771.0,0.002]
[1721016724679,0.84485898,62772.0,62771.0,0.002]
[1721016725121,0.70462721,62772.0,62771.0,0.002]
[1721016725738,0.70562721,62772.0,62771.0,0.016]
[1721016726156,0.70462721,62772.0,62771.0,0.002]
[1721016726571,0.29954461,62772.0,62771.0,0.016]
[1721016726746,0.58629661,62772.0,62771.0,0.02549257]
[1721016727198,0.57187541,62772.0,62771.0,0.02549257]
[1721016727400,0.58553154,62772.0,62771.0,0.02549257]
[1721016727576,0.29877954,62772.0,62771.0,0.02549257]
[1721016728386,0.58553154,62772.0,62771.0,0.02549257]
[1721016728587,0.58553154,62772.0,62771.0,0.016]
[1721016730540,0.58554431,62772.0,62771.0,0.016]
[1721016731298,0.68097012,62772.0,62771.0,0.016]
[1721016732516,0.58554431,62772.0,62771.0,0.016]
[1721016733474,1.52943041,62772.0,62771.0,0.016]
[1721016733659,1.02342133,62772.0,62771.0,0.016]
[1721016733858,1.02370602,62772.0,62771.0,0.016]
[1721016734666,0.45020202,62772.0,62771.0,0.016]
[1721016735301,1.32645802,62772.0,62771.0,0.016]
[1721016735523,1.31045802,62772.0,62771.0,0.016]
[1721016735689,1.02370602,62772.0,62771.0,0.016]
[1721016736102,1.03970602,62772.0,62771.0,0.016]
[1721016736979,0.97462741,62772.0,62771.0,0.016]
[1721016737182,1.04089342,62772.0,62771.0,0.016]
[1721016737464,0.97462741,62772.0,62771.0,0.016]
[1721016737626,1.04103663,62772.0,62771.0,0.016]
[1721016737802,1.20315454,62772.0,62771.0,0.016]
[1721016737987,1.32778863,62772.0,62771.0,0.016]
[1721016740118,1.3279849,62772.0,62771.0,0.016]
[1721016740329,1.32798561,62772.0,62771.0,0.016]
[1721016743525,1.32754587,62772.0,62771.0,0.016]
[1721016743736,1.32754585,62772.0,62771.0,0.016]
[1721016745084,1.57633169,62772.0,62771.0,0.016]
[1721016745260,1.77633169,62772.0,62771.0,0.016]
[1721016745892,1.87633169,62772.0,62771.0,0.016]
[1721016746097,1.45972441,62769.0,62768.0,0.009174]
[1721016746300,2.38551789,62769.0,62768.0,0.009174]
[1721016746555,2.56718625,62769.0,62768.0,0.009174]
[1721016746768,1.56107341,62766.0,62765.0,0.009174]
[1721016746948,1.72818298,62766.0,62765.0,0.009174]
[1721016747153,1.66107341,62766.0,62765.0,0.009174]
[1721016747363,1.89030189,62766.0,62765.0,0.009174]
[1721016747581,1.02025441,62761.0,62760.0,0.0003069]
[1721016747847,1.67028207,62761.0,62760.0,0.0003069]
[1721016748025,1.77028207,62761.0,62760.0,0.0003069]
[1721016748223,1.81328289,62761.0,62760.0,0.0003069]
[1721016748424,1.93237821,62761.0,62760.0,0.0003069]
[1721016748842,1.93237821,62761.0,62760.0,0.0013069]
[1721016749042,1.81328289,62761.0,62760.0,0.0013069]
[1721016749899,1.63643813,62761.0,62760.0,0.0013069]
[1721016750100,1.6516957,62761.0,62760.0,0.0013069]
[1721016750510,1.6516957,62761.0,62760.0,0.0003069]
[1721016750826,1.6556957,62761.0,62760.0,0.0003069]
[1721016751231,1.79861566,62761.0,62760.0,0.0003069]
[1721016751431,1.6556957,62761.0,62760.0,0.0003069]
[1721016751672,1.67644714,62761.0,62760.0,0.0003069]
[1721016752819,1.87644714,62761.0,62760.0,0.0003069]
[1721016753232,2.0039121,62761.0,62760.0,0.0003069]
[1721016753433,1.8760405,62761.0,62760.0,0.0003069]
[1721016753766,1.6760405,62761.0,62760.0,0.0003069]
[1721016754621,1.6720405,62761.0,62760.0,0.0003069]
[1721016754821,1.7720405,62761.0,62760.0,0.0003069]
[1721016755198,1.75628906,62761.0,62760.0,0.0003069]
[1721016755397,1.65628906,62761.0,62760.0,0.0003069]
[1721016755782,1.65128906,62761.0,62760.0,0.0003069]
[1721016755987,1.58405441,62761.0,62760.0,0.0003069]
[1721016756140,1.65100841,62761.0,62760.0,0.0003069]
[1721016756323,1.75100841,62761.0,62760.0,0.0003069]
[1721016756529,1.75103205,62761.0,62760.0,0.0003069]
[1721016756726,0.67332605,62761.0,62760.0,0.0003069]
[1721016756934,0.69315773,62761.0,62760.0,0.0003069]
[1721016757136,1.17643005,62761.0,62760.0,0.0003069]
[1721016757353,1.07645973,62761.0,62760.0,0.0003069]
[1721016757551,0.88462805,62761.0,62760.0,0.0003069]
[1721016757992,0.88862805,62761.0,62760.0,0.0003069]
[1721016758170,0.4656369,62761.0,62760.0,0.0443069]
[1721016758377,0.46563553,62761.0,62760.0,0.0003069]
[1721016758596,0.53752605,62761.0,62760.0,0.0003069]
[1721016759046,0.60903653,62761.0,62760.0,0.0003069]
[1721016759246,0.89683853,62761.0,62760.0,0.0003069]
[1721016759451,0.89684885,62761.0,62760.0,0.0003069]
[1721016759760,0.89699625,62761.0,62760.0,0.0003069]
[1721016759959,1.24519825,62761.0,62760.0,0.0003069]
[1721016760283,1.17368105,62761.0,62760.0,0.0003069]
[1721016761087,1.17268105,62761.0,62760.0,0.0003069]
[1721016761418,1.55098305,62761.0,62760.0,0.0003069]
[1721016761619,1.55098305,62761.0,62760.0,0.0013069]
[1721016761620,1.67120145,62761.0,62760.0,0.0013069]
[1721016761881,1.81310096,62761.0,62760.0,0.0003069]
[1721016762083,1.82976365,62761.0,62760.0,0.0003069]
[1721016762199,1.82976365,62761.0,62760.0,0.0013069]
[1721016762398,1.82976365,62761.0,62760.0,0.0003069]
[1721016762839,1.76263501,62761.0,62760.0,0.0013069]
[1721016763041,1.82990258,62761.0,62760.0,0.0013069]
[1721016763246,1.66778467,62761.0,62760.0,0.0013069]
[1721016763443,1.019856,62758.0,62757.0,0.01076]
[1721016763644,1.18712357,62758.0,62757.0,0.01076]
[1721016763846,1.18737927,62758.0,62757.0,0.01076]
[1721016764346,0.88456327,62758.0,62757.0,0.01076]
[1721016764522,0.59774727,62758.0,62757.0,0.01076]
[1721016764739,0.69315069,62758.0,62757.0,0.01076]
[1721016764940,1.00382001,62758.0,62757.0,0.01076]
[1721016765287,0.88556327,62758.0,62757.0,0.01076]
[1721016765606,0.59874727,62758.0,62757.0,0.01076]
[1721016765806,0.61474727,62758.0,62757.0,0.01076]
[1721016766145,0.9008957,62758.0,62757.0,0.01076]
[1721016766318,0.96778527,62758.0,62757.0,0.01076]
[1721016766521,1.04518527,62758.0,62757.0,0.01076]
[1721016768432,1.33200127,62758.0,62757.0,0.01076]
[1721016768835,1.33200127,62758.0,62757.0,0.0085485]
[1721016769087,1.59411918,62758.0,62757.0,0.0085485]
[1721016769384,1.52722961,62758.0,62757.0,0.0085485]
[1721016769594,1.5942795,62758.0,62757.0,0.0085485]
[1721016771308,1.43216159,62758.0,62757.0,0.0085485]
[1721016772705,1.43151755,62758.0,62757.0,0.0085485]
[1721016773030,1.41689478,62758.0,62757.0,0.0085485]
[1721016773271,1.43151754,62758.0,62757.0,0.0085485]
[1721016773481,1.98623354,62758.0,62757.0,0.0085485]
[1721016773673,2.37135145,62758.0,62757.0,0.0085485]
[1721016774659,2.37035145,62758.0,62757.0,0.0085485]
[1721016775007,2.37135145,62758.0,62757.0,0.0085485]
[1721016775627,2.00923354,62758.0,62757.0,0.0085485]
[1721016775775,2.01037388,62758.0,62757.0,0.0085485]
[1721016775984,2.01037554,62758.0,62757.0,0.0085485]
[1721016776163,1.53265954,62758.0,62757.0,0.0085485]
[1721016777091,1.69371947,62758.0,62757.0,0.0085485]
[1721016777502,2.02373738,62758.0,62757.0,0.0085485]
[1721016777721,2.34949345,62758.0,62757.0,0.0085485]
[1721016778276,1.2202057,62752.0,62751.0,0.002]
[1721016778476,2.08418394,62752.0,62751.0,0.002]
[1721016778884,2.10087008,62752.0,62751.0,0.002]
[1721016779087,2.03332224,62752.0,62751.0,0.002]
[1721016779314,2.04406362,62752.0,62751.0,0.002]
[1721016779514,2.00186338,62752.0,62751.0,0.002]
[1721016779861,1.92176338,62752.0,62751.0,0.002]
[1721016780851,2.06498359,62752.0,62751.0,0.002]
[1721016781049,1.92176338,62752.0,62751.0,0.002]
[1721016781354,2.06498344,62752.0,62751.0,0.002]
[1721016781534,1.90576338,62752.0,62751.0,0.002]
[1721016781730,1.90545715,62752.0,62751.0,0.002]
[1721016781929,2.04869124,62752.0,62751.0,0.002]
[1721016782135,2.04869124,62752.0,62751.0,0.002913]
[1721016783132,1.84365566,62752.0,62751.0,0.002913]
[1721016783332,1.95658004,62752.0,62751.0,0.002913]
[1721016783552,1.62874964,62752.0,62751.0,0.002913]
[1721016783751,1.72874964,62752.0,62751.0,0.002913]
[1721016783963,1.80884964,62752.0,62751.0,0.002913]
[1721016784161,2.07064964,62752.0,62751.0,0.002913]
[1721016784370,2.23178966,62752.0,62751.0,0.002913]
[1721016784567,2.03178966,62752.0,62751.0,0.002913]
[1721016784988,1.9355838,62752.0,62751.0,0.002913]
[1721016785199,2.1355838,62752.0,62751.0,0.002913]
[1721016785331,1.76770059,62752.0,62751.0,0.002913]
[1721016785540,1.67439627,62752.0,62751.0,0.002913]
[1721016785744,1.19145327,62752.0,62751.0,0.002913]
[1721016785999,1.12965327,62752.0,62751.0,0.002913]
[1721016787197,1.41649627,62752.0,62751.0,0.002913]
[1721016787403,1.12965327,62752.0,62751.0,0.002913]
[1721016787759,0.08559057,62752.0,62751.0,0.333037]
[1721016787955,0.08559057,62752.0,62751.0,0.619885]
[1721016787956,0.10471644,62752.0,62751.0,0.619885]
[1721016788160,0.03271287,62752.0,62751.0,0.906733]
[1721016788357,0.03271287,62752.0,62751.0,0.966733]
[1721016788558,0.03271287,62752.0,62751.0,1.253581]
[1721016788893,0.03171287,62752.0,62751.0,1.193581]
[1721016789091,0.03171287,62752.0,62751.0,1.253581]
[1721016789317,0.03271287,62752.0,62751.0,1.253581]
[1721016789515,0.03171287,62752.0,62751.0,1.253581]
[1721016789879,0.03171287,62752.0,62751.0,0.002913]
[1721016789880,0.03271287,62752.0,62751.0,0.002913]
[1721016790077,0.03296857,62752.0,62751.0,0.002913]
[1721016790349,0.08047876,62752.0,62751.0,0.146337]
[1721016790552,0.03296857,62752.0,62751.0,0.146337]
[1721016790705,0.12849106,62752.0,62751.0,0.002913]
[1721016790921,0.34901349,62752.0,62751.0,0.002913]
[1721016791122,0.63506029,62752.0,62751.0,0.002913]
[1721016791381,1.00719866,62752.0,62751.0,0.002913]
[1721016791669,1.00719866,62752.0,62751.0,0.009913]
[1721016791670,1.00819866,62752.0,62751.0,0.009913]
[1721016791936,1.35055173,62752.0,62751.0,0.009913]
[1721016792153,1.20718721,62752.0,62751.0,0.009913]
[1721016792357,1.20618721,62752.0,62751.0,0.002913]
[1721016792787,1.20718721,62752.0,62751.0,0.009913]
[1721016793184,1.20618721,62752.0,62751.0,0.002913]
[1721016793376,1.30618721,62752.0,62751.0,0.002913]
[1721016793685,1.50618721,62752.0,62751.0,0.002913]
[1721016793926,1.30618721,62752.0,62751.0,0.002913]
[1721016794605,1.46750082,62752.0,62751.0,0.002913]
[1721016794821,1.13789184,62752.0,62751.0,0.009913]
[1721016795035,1.20594318,62752.0,62751.0,0.002913]
[1721016795473,0.90310018,62752.0,62751.0,0.002913]
[1721016795718,1.20594318,62752.0,62751.0,0.002913]
[1721016796189,1.19094318,62752.0,62751.0,0.008913]
[1721016796425,1.20694318,62752.0,62751.0,0.008913]
[1721016797519,1.13789184,62752.0,62751.0,0.008913]
[1721016797721,1.2079624,62752.0,62751.0,0.008913]
[1721016798323,1.53137495,62752.0,62751.0,0.008913]
[1721016798562,1.46925704,62752.0,62751.0,0.008913]
[1721016798769,1.2079624,62752.0,62751.0,0.008913]
[1721016799408,1.20110212,62752.0,62751.0,0.008913]
[1721016800198,1.19127626,62752.0,62751.0,0.008913]
[1721016800640,0.88843326,62752.0,62751.0,0.008913]
[1721016800843,0.88741371,62752.0,62751.0,0.008913]
[1721016802713,0.90341371,62752.0,62751.0,0.008913]
[1721016802946,0.92009985,62752.0,62751.0,0.008913]
[1721016803178,0.61725685,62752.0,62751.0,0.008913]
[1721016803354,0.18699285,62752.0,62751.0,0.08996538]
[1721016803634,0.18699285,62752.0,62751.0,0.008913]
[1721016803635,0.33041385,62752.0,62751.0,0.008913]
[1721016803839,0.47376953,62752.0,62751.0,0.008913]
[1721016804244,0.32996652,62752.0,62751.0,0.008913]
[1721016804447,0.18661084,62752.0,62751.0,0.008913]
[1721016804575,0.18661084,62752.0,62751.0,0.052913]
[1721016804780,0.08635514,62752.0,62751.0,0.052913]
[1721016804982,0.08661084,62752.0,62751.0,0.008913]
[1721016805182,0.08661084,62752.0,62751.0,0.196337]
[1721016805388,0.08661084,62752.0,62751.0,0.008913]
[1721016805972,0.08661084,62752.0,62751.0,0.00997653]
[1721016806205,0.23003184,62752.0,62751.0,0.00997653]
[1721016806401,0.61687484,62752.0,62751.0,0.008913]
[1721016806603,0.76023052,62752.0,62751.0,0.008913]
[1721016807547,0.76042687,62752.0,62751.0,0.008913]
[1721016807783,0.61703302,62752.0,62751.0,0.008913]
[1721016807947,1.44937262,62752.0,62751.0,0.008913]
[1721016810578,1.39639087,62752.0,62751.0,0.008913]
[1721016810930,1.44939051,62752.0,62751.0,0.008913]
[1721016811501,1.61072557,62752.0,62751.0,0.008913]
[1721016812083,1.81072557,62752.0,62751.0,0.008913]
[1721016813586,1.61072557,62752.0,62751.0,0.008913]
[1721016813816,1.61074111,62752.0,62751.0,0.008913]
[1721016815017,1.61157111,62752.0,62751.0,0.008913]
[1721016815902,1.51157111,62752.0,62751.0,0.008913]
[1721016816102,1.28132184,62752.0,62751.0,0.008913]
[1721016816309,1.3506077,62752.0,62751.0,0.008913]
[1721016816727,1.51195832,62752.0,62751.0,0.008913]
[1721016817268,1.51192603,62752.0,62751.0,0.008913]
[1721016817473,1.61192603,62752.0,62751.0,0.008913]
[1721016817679,1.44267872,62752.0,62751.0,0.008913]
[1721016817975,1.62246875,62752.0,62751.0,0.008913]
[1721016818378,1.52246875,62752.0,62751.0,0.008913]
[1721016818619,1.62246875,62752.0,62751.0,0.008913]
[1721016820343,1.62246632,62752.0,62751.0,0.008913]
[1721016820546,1.62246444,62752.0,62751.0,0.008913]
[1721016820722,1.62246761,62752.0,62751.0,0.008913]
[1721016821221,1.44586761,62752.0,62751.0,0.008913]
[1721016821953,1.09302461,62752.0,62751.0,0.008913]
[1721016822060,0.93166887,62752.0,62751.0,0.008913]
[1721016822559,1.31851187,62752.0,62751.0,0.008913]
[1721016823138,1.31832009,62752.0,62751.0,0.008913]
[1721016823531,1.51832009,62752.0,62751.0,0.008913]
[1721016823730,1.24907062,62752.0,62751.0,0.008913]
[1721016823928,1.48013038,62752.0,62751.0,0.008913]
[1721016824852,1.31877541,62752.0,62751.0,0.008913]
[1721016825233,1.74623128,62752.0,62751.0,0.008913]
[1721016825434,1.58487541,62752.0,62751.0,0.008913]
[1721016825615,1.38487541,62752.0,62751.0,0.008913]
[1721016825816,2.12241841,62752.0,62751.0,0.008913]
[1721016826219,1.92241841,62752.0,62751.0,0.008913]
[1721016826449,1.36737541,62752.0,62751.0,0.008913]
[1721016826703,1.75543108,62752.0,62751.0,0.008913]
[1721016827117,1.52437062,62752.0,62751.0,0.008913]
[1721016827303,1.85768069,62752.0,62751.0,0.008913]
[1721016827461,1.62437062,62752.0,62751.0,0.008913]
[1721016827662,2.35137061,62752.0,62751.0,0.008913]
[1721016827903,2.35137061,62752.0,62750.0,0.009174]
[1721016827904,1.8263537,62751.0,62750.0,1e-08]
[1721016828102,1.8263537,62751.0,62749.0,0.009174]
[1721016828103,0.8868117,62750.0,62749.0,0.009174]
[1721016828328,1.91932469,62750.0,62749.0,0.009174]
[1721016828497,2.20617669,62750.0,62749.0,0.009174]
[1721016828687,1.91932469,62750.0,62749.0,0.009174]
[1721016828867,1.45549469,62750.0,62749.0,0.009174]
[1721016829643,0.96864269,62750.0,62749.0,0.009174]
[1721016829927,0.33355059,62750.0,62749.0,0.009174]
[1721016830126,0.33355059,62750.0,62749.0,0.340902]
[1721016830127,0.22235291,62750.0,62749.0,0.340902]
[1721016830350,0.07876546,62750.0,62749.0,0.914616]
[1721016830688,0.17434978,62750.0,62749.0,0.914616]
[1721016830887,0.02436867,62750.0,62749.0,0.914616]
[1721016831286,0.02462437,62750.0,62749.0,0.009174]
[1721016831487,0.19728554,62750.0,62749.0,0.009174]
[1721016831759,0.07780044,62750.0,62749.0,0.009174]
[1721016831934,0.07754474,62750.0,62749.0,0.865016]
[1721016832147,0.07754474,62750.0,62749.0,1.195873]
[1721016832335,0.2012852,62750.0,62749.0,0.909016]
[1721016832492,0.1942852,62750.0,62749.0,0.909016]
[1721016832693,0.1900295,62750.0,62749.0,0.909016]
[1721016832873,0.1920295,62750.0,62749.0,0.909016]
[1721016833078,0.07354474,62750.0,62749.0,0.909016]
[1721016833319,0.003,62750.0,62749.0,0.909016]
[1721016833525,0.06975798,62750.0,62749.0,0.909016]
[1721016833697,0.07101368,62750.0,62749.0,0.338302]
[1721016833880,0.19048526,62750.0,62749.0,0.625159]
[1721016834443,0.18948526,62750.0,62749.0,0.578159]
[1721016834579,0.18948526,62750.0,62749.0,0.622159]
[1721016834775,0.19048526,62750.0,62749.0,0.622159]
[1721016834976,0.19048526,62750.0,62749.0,0.578159]
[1721016835179,0.07001368,62750.0,62749.0,0.622159]
[1721016835423,0.07101368,62750.0,62749.0,0.622159]
[1721016835792,0.07101368,62750.0,62749.0,0.911016]
[1721016835996,0.07201368,62750.0,62749.0,0.911016]
[1721016836198,0.07201368,62750.0,62749.0,0.624159]
[1721016836399,0.07001368,62750.0,62749.0,0.622159]
[1721016836623,0.0012557,62750.0,62749.0,0.622159]
[1721016836986,0.0012557,62750.0,62749.0,0.231302]
[1721016836987,0.07132991,62750.0,62749.0,0.231302]
[1721016837196,0.72347174,62750.0,62749.0,0.011174]
[1721016837386,1.33153626,62750.0,62749.0,0.011174]
[1721016838224,1.25374974,62750.0,62749.0,0.011174]
[1721016838426,1.25374974,62750.0,62749.0,0.088574]
[1721016838427,0.57501256,62750.0,62749.0,0.088574]
[1721016838627,0.57501256,62750.0,62749.0,0.232002]
[1721016838628,0.39714492,62750.0,62749.0,0.232002]
[1721016838832,0.17044492,62750.0,62749.0,0.562859]
[1721016839049,0.17044492,62750.0,62749.0,0.849716]
[1721016839250,0.07144492,62750.0,62749.0,1.136573]
[1721016839471,0.13672785,62750.0,62749.0,1.136573]
[1721016839618,0.13672785,62750.0,62749.0,1.201773]
[1721016839619,0.01769253,62750.0,62749.0,1.201773]
[1721016839820,0.002,62750.0,62749.0,1.201773]
[1721016839983,0.11432161,62750.0,62749.0,1.201773]
[1721016840186,0.0166904,62750.0,62749.0,1.199773]
[1721016840391,0.11332084,62750.0,62749.0,1.201773]
[1721016840633,0.08941113,62750.0,62749.0,1.201773]
[1721016840832,0.08941154,62750.0,62749.0,1.201773]
[1721016841172,0.08941154,62750.0,62749.0,1.199773]
[1721016841347,0.08941154,62750.0,62749.0,1.321773]
[1721016841348,0.09041154,62750.0,62749.0,1.321773]
[1721016841511,0.09041154,62750.0,62749.0,1.201773]
[1721016841707,0.0176904,62750.0,62749.0,1.199773]
[1721016841910,0.0176904,62750.0,62749.0,1.319773]
[1721016842181,0.0176904,62750.0,62749.0,1.321773]
[1721016842403,0.01668106,62750.0,62749.0,1.321773]
[1721016842606,0.06548319,62750.0,62749.0,1.321773]
[1721016842775,0.06448319,62750.0,62749.0,1.321773]
[1721016843123,0.06548319,62750.0,62749.0,1.321773]
[1721016843346,0.01768106,62750.0,62749.0,1.321773]
[1721016843675,0.01768106,62750.0,62749.0,1.60863]
[1721016844455,0.01668106,62750.0,62749.0,1.319773]
[1721016844654,0.01768106,62750.0,62749.0,1.321773]
[1721016844901,0.01968106,62750.0,62749.0,0.914916]
[1721016845268,0.01768106,62750.0,62749.0,0.912916]
[1721016845497,0.01768106,62750.0,62749.0,0.924916]
[1721016845498,0.003,62750.0,62749.0,0.924916]
[1721016845842,0.002,62750.0,62749.0,0.912916]
[1721016845955,0.01718246,62750.0,62749.0,0.912916]
[1721016846160,0.01818246,62750.0,62749.0,0.924916]
[1721016846359,0.01818246,62750.0,62749.0,0.912916]
[1721016846772,0.01918246,62750.0,62749.0,0.924916]
[1721016847175,0.01918246,62750.0,62749.0,0.938916]
[1721016847656,0.01918246,62750.0,62749.0,0.924916]
[1721016847787,0.02001246,62750.0,62749.0,0.924916]
[1721016847992,0.02001246,62750.0,62749.0,0.937916]
[1721016848413,0.01801246,62750.0,62749.0,0.937916]
[1721016848867,0.01806128,62750.0,62749.0,0.651059]
[1721016849068,0.01806128,62750.0,62749.0,0.299002]
[1721016849415,0.01806128,62750.0,62749.0,0.155574]
[1721016849615,0.06582164,62750.0,62749.0,0.078174]
[1721016850116,0.01806128,62750.0,62749.0,0.078174]
[1721016850556,0.08970182,62750.0,62749.0,0.078174]
[1721016851689,0.08970182,62750.0,62749.0,0.795316]
[1721016851690,0.06581798,62750.0,62749.0,0.795316]
[1721016851863,0.01806128,62750.0,62749.0,0.873716]
[1721016852071,0.01816516,62750.0,62749.0,0.873716]
[1721016853975,0.01816516,62750.0,62749.0,0.93763]
[1721016855490,0.01815702,62750.0,62749.0,0.873716]
[1721016855893,0.00283,62750.0,62749.0,0.873716]
[1721016856052,0.01815703,62750.0,62749.0,0.508459]
[1721016856457,0.0659044,62750.0,62749.0,0.508459]
[1721016856757,0.01815703,62750.0,62749.0,0.078174]
[1721016856935,0.08435703,62750.0,62749.0,0.078174]
[1721016857300,0.23269875,62750.0,62749.0,0.078174]
[1721016857478,0.23069875,62750.0,62749.0,0.078174]
[1721016857893,0.30829875,62750.0,62749.0,0.078174]
[1721016858219,0.21480401,62750.0,62749.0,0.078174]
[1721016858424,0.33419199,62750.0,62749.0,0.078174]
[1721016858617,0.26401723,62750.0,62749.0,0.076174]
[1721016858938,0.33298615,62750.0,62749.0,0.076174]
[1721016860118,0.25538615,62750.0,62749.0,0.076174]
[1721016860525,0.13599892,62750.0,62749.0,0.076174]
[1721016860732,0.13799892,62750.0,62749.0,0.076174]
[1721016861352,0.13599892,62750.0,62749.0,0.076174]
[1721016861550,0.13799892,62750.0,62749.0,0.076174]
[1721016862162,0.13599892,62750.0,62749.0,0.076174]
[1721016862316,0.07379892,62750.0,62749.0,0.076174]
[1721016862718,0.21522492,62750.0,62749.0,0.076174]
[1721016863122,0.21722492,62750.0,62749.0,0.076174]
[1721016865250,0.148256,62750.0,62749.0,0.076174]
[1721016865618,0.21566178,62750.0,62749.0,0.076174]
[1721016865873,0.28383817,62750.0,62749.0,0.076174]
[1721016866060,0.19365618,62750.0,62749.0,0.076174]
[1721016866396,0.19165618,62750.0,62749.0,0.076174]
[1721016866611,0.07223512,62750.0,62749.0,0.076174]
[1721016868410,0.07423512,62750.0,62749.0,0.076174]
[1721016869247,0.07223512,62750.0,62749.0,0.076174]
[1721016869464,0.19168345,62750.0,62749.0,0.076174]
[1721016869898,0.19168345,62750.0,62749.0,0.196174]
[1721016870311,0.07223512,62750.0,62749.0,0.196174]
[1721016870531,0.07223512,62750.0,62749.0,0.422902]
[1721016870959,0.16779745,62750.0,62749.0,0.422902]
[1721016871213,0.17840046,62750.0,62749.0,0.422902]
[1721016871403,0.08283813,62750.0,62749.0,0.422902]
[1721016871626,0.02959412,62750.0,62749.0,0.709759]
[1721016872014,0.17952841,62750.0,62749.0,0.709759]
[1721016872792,0.20342102,62750.0,62749.0,0.709759]
[1721016873191,0.08395798,62750.0,62749.0,0.709759]
[1721016874205,0.17955582,62750.0,62749.0,0.709759]
[1721016874411,0.20342102,62750.0,62749.0,0.709759]
[1721016874812,0.08395798,62750.0,62749.0,0.709759]
[1721016875076,0.01343301,62750.0,62749.0,0.709759]
[1721016875305,0.08681236,62750.0,62749.0,0.709759]
[1721016875471,0.01343301,62750.0,62749.0,0.709759]
[1721016875661,0.20638077,62750.0,62749.0,0.709759]
[1721016876091,0.20638077,62750.0,62749.0,1.283473]
[1721016876092,0.07620677,62750.0,62749.0,1.283473]
[1721016876294,0.02102619,62750.0,62749.0,1.283473]
[1721016876999,0.02051994,62750.0,62749.0,1.283473]
[1721016877732,0.00283,62750.0,62749.0,1.283473]
[1721016878391,0.09848104,62750.0,62749.0,1.283473]
[1721016878949,0.11617016,62750.0,62749.0,1.283473]
[1721016879181,0.07543396,62750.0,62749.0,1.283473]
[1721016879912,0.02051912,62750.0,62749.0,1.283473]
[1721016880877,0.02032731,62750.0,62749.0,1.283473]
[1721016881713,0.02032731,62750.0,62749.0,0.996616]
[1721016882272,0.02032731,62750.0,62749.0,0.339602]
[1721016882471,0.02032731,62750.0,62749.0,0.196174]
[1721016882703,0.02232731,62750.0,62749.0,0.339602]
[1721016883503,0.02032731,62750.0,62749.0,0.196174]
[1721016884446,0.02232731,62750.0,62749.0,0.196174]
[1721016884846,0.00463819,62750.0,62749.0,0.196174]
[1721016891931,0.14806419,62750.0,62749.0,0.196174]
[1721016893541,0.14606419,62750.0,62749.0,0.076174]
[1721016893761,0.14806419,62750.0,62749.0,0.076174]
[1721016894692,0.43491619,62750.0,62749.0,0.076174]
[1721016894889,0.43291619,62750.0,62749.0,0.076174]
[1721016895416,0.58011619,62750.0,62749.0,0.076174]
[1721016896085,0.72369565,62750.0,62749.0,0.076174]
[1721016896558,0.00263819,62750.0,62749.0,0.196174]
[1721016896967,0.00263819,62750.0,62749.0,0.626459]
[1721016897119,0.00263819,62750.0,62749.0,0.196174]
[1721016897318,0.14606419,62750.0,62749.0,0.076174]
[1721016897720,0.00463819,62750.0,62749.0,0.076174]
[1721016898327,0.14821831,62750.0,62749.0,0.076174]
[1721016898867,0.72469631,62750.0,62749.0,0.076174]
[1721016899041,0.57911619,62750.0,62749.0,0.076174]
[1721016899483,0.86796819,62750.0,62749.0,0.076174]
[1721016899821,1.62160479,62750.0,62749.0,0.032174]
[1721016900021,0.71721,62743.0,62742.0,0.044]
[1721016900342,1.05431,62743.0,62742.0,0.044]
[1721016900823,1.07099614,62743.0,62742.0,0.044]
[1721016900983,0.26288614,62743.0,62742.0,0.044]
[1721016901183,0.26288614,62743.0,62742.0,0.104]
[1721016901184,0.35378614,62743.0,62742.0,0.104]
[1721016901733,0.49722814,62743.0,62742.0,0.104]
[1721016901905,0.16428823,62743.0,62742.0,0.658833]
[1721016902130,1.00183,62750.0,62749.0,0.164]
[1721016902338,1.00083,62750.0,62749.0,0.674285]
[1721016902498,1.09173,62750.0,62749.0,0.387428]